bitfinex/quotes_ETHUSD_20240718
["timestamp","ask_amount","ask_price","bid_price","bid_amount"]
[1721330206085,2.9367,3405.2,3404.6,2.93714]
[1721330206399,2.93686,3405.0,3404.4,2.93736]
[1721330206615,5.87346,3405.2,3404.5,2.93728]
[1721330206798,2.9367,3405.2,3404.6,2.93718]
[1721330207118,2.9367,3405.2,3404.4,2.93736]
[1721330207119,2.93692,3405.0,3404.4,2.93736]
[1721330208343,2.93752,3404.3,3403.7,2.93794]
[1721330208633,2.93752,3404.3,3403.6,2.93805]
[1721330208634,2.93753,3404.3,3403.6,2.93805]
[1721330208837,2.93758,3404.2,3403.6,2.93805]
[1721330209185,2.93753,3404.3,3403.6,5.87603]
[1721330209425,2.93753,3404.3,3403.6,3.8096505]
[1721330209629,2.93759,3404.2,3403.5,2.2993]
[1721330209791,2.93777,3404.0,3403.5,2.2993]
[1721330210303,2.93755,3404.2,3403.5,5.23744]
[1721330210622,2.93755,3404.2,3403.5,2.2993]
[1721330210826,2.93765,3404.1,3403.5,2.2993]
[1721330211131,2.93774,3404.0,3403.5,2.2993]
[1721330211338,5.87516,3404.2,3403.5,2.2993]
[1721330211534,2.93755,3404.2,3403.5,2.2993]
[1721330211940,2.93778,3404.0,3403.2,2.93836]
[1721330212238,2.93798,3403.7,3403.1,2.4248]
[1721330212549,0.293755,3404.2,3403.2,2.9384]
[1721330212550,2.93796,3403.8,3403.2,2.9384]
[1721330213247,2.93778,3404.0,3403.2,2.9384]
[1721330213397,2.9375,3404.3,3403.2,2.93839]
[1721330213594,3.0,3404.2,3403.3,0.536319]
[1721330213830,2.93769,3404.1,3403.4,2.93818]
[1721330214032,2.93769,3404.1,3403.5,2.93814]
[1721330216034,5.93757,3404.2,3403.5,2.93814]
[1721330216334,5.93757,3404.2,3403.5,2.93809]
[1721330216534,3.0,3404.2,3403.5,2.93808]
[1721330216744,3.0,3404.2,3403.5,5.87616]
[1721330216947,5.93755,3404.2,3403.5,2.93808]
[1721330217447,2.93781,3403.9,3403.3,2.93829]
[1721330217599,2.93768,3404.1,3403.4,2.93822]
[1721330217798,2.93768,3404.1,3403.5,2.93814]
[1721330218800,5.93758,3404.2,3403.3,2.93824]
[1721330218801,2.93782,3403.9,3403.3,2.93824]
[1721330219534,5.93758,3404.2,3403.3,3.768389]
[1721330219535,2.9377,3404.1,3403.3,3.768389]
[1721330219723,2.93772,3404.0,3403.3,0.830149]
[1721330219913,2.93781,3403.9,3403.3,3.768449]
[1721330220435,2.9377,3404.1,3403.4,2.93822]
[1721330220945,2.93785,3403.9,3403.3,0.830149]
[1721330221146,5.87553,3404.0,3403.3,3.768419]
[1721330221306,2.93774,3404.0,3403.3,3.768399]
[1721330221510,2.93734,3404.5,3403.8,2.93788]
[1721330221744,2.93724,3404.6,3403.8,2.3056]
[1721330221953,2.93742,3404.4,3403.8,5.24349]
[1721330222139,2.93706,3404.8,3404.1,2.93763]
[1721330222317,10.43689,3405.0,3403.8,2.3056]
[1721330222318,2.93689,3405.0,3404.3,2.93738]
[1721330222513,2.93689,3405.0,3404.1,2.93758]
[1721330222714,2.9362,3405.8,3405.0,2.93678]
[1721330223064,0.45812525,3406.0,3405.3,2.93653]
[1721330223065,2.93599,3406.0,3405.3,2.93653]
[1721330223211,2.93585,3406.2,3405.3,2.93653]
[1721330223212,2.93585,3406.2,3405.3,3.230183]
[1721330223408,2.93585,3406.2,3405.5,2.93637]
[1721330223854,2.93568,3406.4,3405.6,2.93631]
[1721330224149,2.93574,3406.3,3405.6,2.93631]
[1721330224516,2.93574,3406.3,3405.7,2.93625]
[1721330225024,3.522864,3406.3,3405.7,2.93625]
[1721330225214,3.522864,3406.3,3405.6,2.93632]
[1721330225419,2.93583,3406.2,3405.6,2.93632]
[1721330225614,2.93583,3406.2,3405.3,3.230223]
[1721330225855,2.93583,3406.2,3405.5,2.93636]
[1721330226014,2.93583,3406.2,3405.6,2.93633]
[1721330226353,2.93583,3406.2,3405.4,2.93644]
[1721330226553,2.93583,3406.2,3405.5,2.93641]
[1721330227354,2.93618,3405.8,3405.1,2.9367]
[1721330227523,2.93605,3406.0,3405.2,2.93668]
[1721330227716,2.93605,3406.0,3405.1,2.93676]
[1721330227917,2.93605,3406.0,3405.4,2.93651]
[1721330228152,2.93592,3406.1,3405.2,2.93662]
[1721330228371,2.93622,3405.8,3405.2,2.93662]
[1721330228667,2.93608,3405.9,3405.3,2.93659]
[1721330229250,2.93583,3406.2,3405.6,2.93627]
[1721330229472,2.93532,3406.8,3405.9,2.93605]
[1721330229672,2.93478,3407.5,3406.8,2.93527]
[1721330230114,2.4433,3407.9,3406.7,2.93532]
[1721330230115,2.93479,3407.4,3406.7,2.93532]
[1721330230317,2.93455,3407.7,3406.1,2.93587]
[1721330230318,2.9351,3407.1,3406.3,2.93566]
[1721330230514,2.9351,3407.1,3406.0,2.759005]
[1721330230515,2.93513,3407.0,3406.4,2.93564]
[1721330231850,5.93464,3407.6,3406.4,2.93564]
[1721330231851,2.93481,3407.4,3406.4,2.93564]
[1721330232056,3.0,3407.6,3406.2,2.93576]
[1721330232057,3.0,3407.3,3406.2,2.93576]
[1721330232226,5.93472,3407.5,3406.7,2.93533]
[1721330232418,2.93481,3407.4,3406.8,2.9353]
[1721330232615,3.0,3407.3,3406.8,2.9353]
[1721330233367,2.9351,3407.1,3406.4,2.93561]
[1721330233719,2.93514,3407.0,3406.4,2.93561]
[1721330234226,2.93522,3406.9,3406.2,2.93576]
[1721330234775,2.9351,3407.1,3406.4,2.93564]
[1721330235120,2.93513,3407.0,3406.4,2.93564]
[1721330235460,2.93534,3406.8,3405.1,2.93673]
[1721330235665,2.93591,3406.1,3405.1,2.93673]
[1721330235871,2.93601,3406.0,3405.3,2.93653]
[1721330236159,2.93611,3405.9,3405.1,2.93673]
[1721330236362,2.93611,3405.9,3405.2,2.93667]
[1721330237256,2.93616,3405.8,3405.1,3.767526]
[1721330237634,2.93608,3405.9,3405.2,2.93662]
[1721330237955,2.93624,3405.8,3405.2,2.93662]
[1721330238461,2.93648,3405.5,3404.7,2.93711]
[1721330238673,2.93656,3405.4,3404.8,2.93702]
[1721330239549,2.93616,3405.9,3405.1,2.93671]
[1721330239860,2.93616,3405.9,3404.9,2.93687]
[1721330239861,2.93611,3405.9,3404.9,2.93687]
[1721330240058,2.93611,3405.9,3405.3,2.93657]
[1721330240424,2.93562,3406.5,3405.7,2.93618]
[1721330240860,2.93562,3406.5,3405.4,2.4413]
[1721330240861,2.93522,3406.9,3405.4,2.4413]
[1721330241064,2.9351,3407.1,3406.4,2.93559]
[1721330241376,2.93527,3406.9,3406.0,2.93595]
[1721330241535,2.93527,3406.9,3405.8,2.4413]
[1721330241536,2.93505,3407.1,3405.8,2.4413]
[1721330241734,2.93505,3407.1,3406.4,2.93564]
[1721330242331,2.93505,3407.1,3406.5,2.93555]
[1721330242555,15.40388,3408.5,3405.9,3.634754]
[1721330242556,2.93474,3407.5,3405.9,3.634754]
[1721330242722,2.93474,3407.5,3406.7,2.93531]
[1721330242922,2.93474,3407.5,3406.8,2.93525]
[1721330243120,2.93463,3407.6,3406.9,2.93521]
[1721330243569,2.93473,3407.5,3406.9,2.93521]
[1721330243780,5.41617,3408.2,3406.8,0.587056]
[1721330243781,5.8688,3407.9,3406.8,0.587056]
[1721330243942,2.482,3408.2,3407.2,2.93494]
[1721330243943,2.93444,3407.8,3407.2,2.93494]
[1721330244941,2.93427,3408.0,3407.2,2.93494]
[1721330245139,2.93453,3407.7,3407.0,2.93506]
[1721330245471,2.9347,3407.5,3406.9,2.93521]
[1721330245634,2.9347,3407.5,3406.7,5.39551]
[1721330245838,2.93514,3407.0,3406.4,2.93558]
[1721330246531,2.93522,3406.9,3406.2,8.13656]
[1721330246725,2.93545,3406.7,3406.0,2.93596]
[1721330246926,6.457529,3406.9,3406.1,2.9359]
[1721330247263,6.457529,3406.9,3406.0,2.93596]
[1721330247264,3.522239,3406.9,3406.2,2.93581]
[1721330247441,3.522239,3406.9,3406.0,2.93596]
[1721330247442,3.522249,3406.9,3406.0,2.93596]
[1721330247870,2.93544,3406.7,3406.1,2.9359]
[1721330248071,2.93508,3407.1,3406.2,2.93575]
[1721330248380,2.93528,3406.9,3406.1,2.9359]
[1721330248579,2.93462,3407.6,3406.2,2.93581]
[1721330248778,2.93515,3407.0,3406.4,2.93564]
[1721330249088,2.93521,3406.9,3406.3,0.293581]
[1721330249447,2.93497,3407.2,3406.3,0.293581]
[1721330249763,5.93476,3407.5,3406.7,2.93539]
[1721330250365,2.93488,3407.3,3406.7,2.93539]
[1721330250966,8.86953,3407.5,3406.7,2.93539]
[1721330251168,2.93481,3407.4,3406.7,2.93539]
[1721330251485,5.93476,3407.5,3406.8,2.9353]
[1721330251684,2.9348,3407.4,3406.8,2.9353]
[1721330251992,2.93488,3407.3,3406.7,2.93532]
[1721330252287,2.93488,3407.3,3406.8,2.9353]
[1721330253183,2.93488,3407.3,3406.5,2.93552]
[1721330253184,2.9349,3407.3,3406.6,2.9354]
[1721330253385,2.9349,3407.3,3406.7,2.93532]
[1721330253556,5.93473,3407.5,3406.8,2.93529]
[1721330253886,2.93479,3407.4,3406.8,2.93529]
[1721330254276,2.93487,3407.3,3406.8,2.93529]
[1721330254485,2.93482,3407.4,3406.8,5.87052]
[1721330254665,3.0,3407.5,3406.8,2.93523]
[1721330255266,3.0,3407.5,3407.0,2.93512]
[1721330255575,2.93389,3408.5,3407.0,0.833245]
[1721330255787,2.93438,3407.9,3407.2,2.93487]
[1721330256096,2.93438,3407.9,3407.0,2.93511]
[1721330256097,2.93455,3407.7,3407.1,2.93496]
[1721330256660,2.93455,3407.7,3407.2,2.93495]
[1721330256861,5.86881,3407.9,3407.2,2.93495]
[1721330257060,3.521261,3407.9,3407.0,2.93505]
[1721330257272,2.93454,3407.7,3407.1,2.93502]
[1721330257483,5.93405,3408.3,3407.6,2.93456]
[1721330257685,2.93427,3408.0,3407.1,2.93499]
[1721330257884,2.93427,3408.0,3407.3,2.93481]
[1721330258209,2.93427,3408.0,3407.4,2.93478]
[1721330258358,2.93427,3408.0,3407.4,5.86952]
[1721330258559,2.93427,3408.0,3407.4,2.93474]
[1721330259107,2.93443,3407.9,3407.2,2.93495]
[1721330259398,2.93451,3407.8,3407.2,2.9349]
[1721330259699,2.93436,3407.9,3407.2,2.9349]
[1721330260069,2.93436,3407.9,3407.4,2.93478]
[1721330261500,2.93436,3407.9,3407.2,2.93488]
[1721330261865,2.93423,3408.1,3407.5,2.93464]
[1721330262067,2.9341,3408.2,3407.6,2.93456]
[1721330262283,2.93393,3408.4,3407.8,2.93443]
[1721330263363,2.93393,3408.4,3407.7,0.05868636]
[1721330263364,2.93379,3408.6,3408.1,2.93418]
[1721330263563,2.93379,3408.6,3408.0,2.93422]
[1721330264767,2.93379,3408.6,3407.5,2.4164]
[1721330264965,2.93379,3408.6,3407.6,0.535126]
[1721330265400,2.93417,3408.2,3407.6,2.93461]
[1721330265590,2.93441,3407.9,3407.3,2.93481]
[1721330266113,2.93419,3408.1,3407.3,2.93481]
[1721330266397,5.86844,3408.1,3407.5,2.93468]
[1721330266598,5.86844,3408.1,3407.3,2.93481]
[1721330266599,2.93423,3408.1,3407.3,2.93481]
[1721330266810,2.93442,3407.9,3407.4,2.93477]
[1721330268616,2.93442,3407.9,3407.2,2.93494]
[1721330268825,5.86885,3407.9,3407.2,2.93494]
[1721330268972,2.93442,3407.9,3407.3,2.93481]
[1721330269174,2.93442,3407.9,3407.2,2.93489]
[1721330269471,2.93442,3407.9,3407.2,6.404909]
[1721330269696,2.93422,3408.1,3407.5,2.93467]
[1721330269895,2.93422,3408.1,3407.2,0.535129]
[1721330269896,2.93428,3408.0,3407.3,2.93479]
[1721330270100,2.93428,3408.0,3407.2,3.470039]
[1721330270101,2.93428,3408.0,3407.4,2.93475]
[1721330271183,2.93436,3407.9,3407.4,2.93475]
[1721330271388,2.93436,3407.9,3407.4,2.93478]
[1721330271623,2.93422,3408.1,3407.5,2.93469]
[1721330271791,2.93422,3408.1,3407.6,2.9346]
[1721330272129,2.93386,3408.5,3407.8,2.4439]
[1721330272289,2.93386,3408.5,3408.0,2.93424]
[1721330272487,2.93386,3408.5,3407.8,2.4439]
[1721330272488,2.93386,3408.5,3407.8,5.37827]
[1721330272803,7.5,3408.7,3407.8,5.37827]
[1721330272804,10.43371,3408.7,3407.8,5.37827]
[1721330273113,5.93382,3408.6,3408.0,2.9342]
[1721330273418,2.93382,3408.6,3408.1,2.93417]
[1721330273775,2.93393,3408.4,3407.9,2.93429]
[1721330274009,2.93393,3408.4,3407.8,2.4439]
[1721330274212,2.93393,3408.4,3407.8,5.37829]
[1721330274420,2.93382,3408.6,3407.9,2.93431]
[1721330274719,5.86765,3408.6,3407.9,2.93431]
[1721330275079,2.93385,3408.5,3407.9,2.93431]
[1721330275280,2.93414,3408.2,3407.6,2.93459]
[1721330275716,2.93414,3408.2,3407.4,5.8900909]
[1721330275717,2.93432,3408.0,3407.4,5.24961]
[1721330276226,0.586767,3408.5,3407.6,2.9346]
[1721330276393,0.586767,3408.5,3407.4,5.24961]
[1721330276394,2.93423,3408.1,3407.4,5.2496]
[1721330276583,2.93423,3408.1,3407.5,2.93463]
[1721330276584,2.93427,3408.0,3407.5,2.93463]
[1721330276785,2.93423,3408.1,3407.6,2.9346]
[1721330277486,2.93423,3408.1,3407.4,8.18438]
[1721330278223,2.93423,3408.1,3407.5,2.93463]
[1721330278406,2.93404,3408.3,3407.5,0.8719359]
[1721330278595,2.93404,3408.3,3407.4,5.24964]
[1721330278797,2.93404,3408.3,3407.7,2.93447]
[1721330278798,2.93414,3408.2,3407.7,2.93447]
[1721330279412,2.93388,3408.5,3407.7,2.93446]
[1721330279413,2.934,3408.4,3407.7,2.93446]
[1721330279592,2.934,3408.4,3407.8,2.93441]
[1721330279930,2.93388,3408.5,3407.9,5.86864]
[1721330280106,2.93388,3408.5,3407.9,2.93429]
[1721330280301,2.93376,3408.6,3408.0,2.93426]
[1721330280494,2.93376,3408.6,3407.9,2.93429]
[1721330280495,2.93389,3408.5,3407.9,2.93428]
[1721330280698,2.93368,3408.7,3407.9,0.293428]
[1721330280909,2.93354,3408.9,3408.1,2.93413]
[1721330280910,2.93359,3408.8,3408.1,2.93413]
[1721330281126,2.93359,3408.8,3408.1,5.25343]
[1721330281323,2.93359,3408.8,3408.2,2.93404]
[1721330281702,7.5,3409.4,3408.3,0.05867616]
[1721330282039,7.5,3409.4,3408.1,2.3193]
[1721330282040,2.93329,3409.2,3408.6,2.93369]
[1721330282249,2.93308,3409.4,3408.1,2.3193]
[1721330282250,2.93308,3409.4,3408.7,0.05866846]
[1721330282533,2.93308,3409.4,3408.8,2.93353]
[1721330282703,5.8659,3409.6,3408.9,2.93348]
[1721330282904,2.93298,3409.5,3408.9,2.93348]
[1721330283638,2.93308,3409.4,3408.9,2.93348]
[1721330283838,2.93298,3409.5,3408.9,2.93348]
[1721330284337,2.93306,3409.4,3408.9,2.93348]
[1721330284743,2.93323,3409.3,3408.7,2.9336]
[1721330284912,2.4787,3409.6,3408.1,5.25347]
[1721330285113,2.93375,3408.7,3408.1,2.93418]
[1721330285541,2.93375,3408.6,3407.9,2.93428]
[1721330285741,2.93375,3408.7,3408.1,2.93413]
[1721330285906,2.93377,3408.6,3407.8,2.9344]
[1721330286241,2.9339,3408.5,3407.6,5.25781]
[1721330286402,2.93432,3408.0,3407.3,2.93482]
[1721330287017,2.93404,3408.3,3407.4,2.93477]
[1721330287210,2.93404,3408.3,3407.5,2.93469]
[1721330287415,2.93419,3408.1,3407.5,2.93469]
[1721330287607,2.93432,3408.0,3407.3,2.93482]
[1721330287808,2.93454,3407.7,3407.1,2.3232]
[1721330288141,2.93454,3407.7,3407.0,2.93508]
[1721330288543,2.93421,3408.1,3407.2,2.93489]
[1721330288746,2.93427,3408.0,3407.4,2.93473]
[1721330288906,2.93435,3407.9,3407.4,2.93473]
[1721330290006,2.93435,3407.9,3407.2,2.93489]
[1721330290007,2.93454,3407.7,3407.0,2.93509]
[1721330290339,2.93454,3407.7,3407.1,2.93503]
[1721330291833,2.93494,3407.3,3406.7,2.3232]
[1721330292037,2.93509,3407.1,3406.6,0.61309278]
[1721330292270,2.93515,3407.0,3406.6,0.61309278]
[1721330292473,2.93509,3407.1,3406.6,0.61309278]
[1721330293338,2.93509,3407.1,3406.6,1.70841753]
[1721330293740,2.93457,3407.7,3406.6,0.61309278]
[1721330293976,5.87078,3406.7,3406.6,0.61309278]
[1721330294284,2.93565,3406.4,3405.6,5.25951]
[1721330294453,2.93553,3406.6,3405.9,2.93607]
[1721330294781,2.93553,3406.6,3406.0,2.93598]
[1721330295778,2.93514,3407.0,3405.8,1.563566]
[1721330296072,2.93514,3407.0,3406.4,2.93564]
[1721330296235,2.93505,3407.1,3406.5,2.93554]
[1721330296442,3.0,3407.0,3406.5,2.93554]
[1721330297193,2.93561,3406.5,3405.7,2.93624]
[1721330297496,3.0,3407.0,3405.8,0.555384]
[1721330297497,2.93565,3406.4,3405.8,0.555384]
[1721330297778,2.93565,3406.4,3405.8,3.491534]
[1721330298082,2.93582,3406.2,3405.8,0.555384]
[1721330298254,2.93571,3406.4,3405.7,2.93625]
[1721330299144,2.93571,3406.4,3405.8,2.93616]
[1721330299389,2.93542,3406.7,3406.0,2.93596]
[1721330299545,2.93547,3406.6,3406.1,0.587209]
[1721330300246,2.93534,3406.8,3406.1,3.523059]
[1721330300791,2.9354,3406.7,3406.1,0.587209]
[1721330301482,2.93558,3406.5,3405.8,2.9361]
[1721330301684,2.93542,3406.7,3405.8,2.9361]
[1721330301984,2.93542,3406.7,3406.0,2.93591]
[1721330302184,5.87089,3406.7,3405.9,2.93605]
[1721330302388,2.93525,3406.9,3406.1,2.93585]
[1721330302589,2.93525,3406.9,3406.3,2.93567]
[1721330302806,2.93525,3406.9,3406.2,0.293585]
[1721330302807,2.93531,3406.8,3406.2,0.293585]
[1721330302966,2.93541,3406.7,3406.2,0.293585]
[1721330303509,2.93525,3406.9,3406.3,2.93567]
[1721330303702,2.93508,3407.1,3406.3,2.93567]
[1721330303703,2.93507,3407.1,3406.3,2.93567]
[1721330303927,5.9352,3407.0,3406.3,3.5521785]
[1721330304205,2.93523,3406.9,3406.3,3.5521785]
[1721330304676,2.9353,3406.8,3406.3,0.6165085]
[1721330305205,3.0,3407.0,3406.4,2.93564]
[1721330305517,5.93514,3407.0,3406.4,2.93564]
[1721330305682,2.93528,3406.9,3406.3,0.6165085]
[1721330305885,2.93528,3406.9,3406.2,2.93576]
[1721330306085,2.93554,3406.6,3406.0,2.93592]
[1721330306608,2.93554,3406.6,3405.8,2.93613]
[1721330306772,2.93554,3406.6,3406.0,2.93598]
[1721330307108,5.8711,3406.6,3406.0,2.93598]
[1721330307277,2.93531,3406.8,3406.0,3.523191]
[1721330307607,2.93531,3406.8,3406.2,2.93581]
[1721330307803,2.93531,3406.8,3406.0,2.93598]
[1721330309097,2.93549,3406.6,3406.0,2.93598]
[1721330309992,2.93522,3406.9,3406.0,2.93595]
[1721330310220,2.93522,3406.9,3405.4,0.2944]
[1721330310221,2.93522,3406.9,3406.2,5.8715]
[1721330310395,2.93522,3406.9,3406.3,3.52287]
[1721330310771,2.93532,3406.8,3406.3,0.58715]
[1721330311474,2.4146,3407.3,3406.6,2.93539]
[1721330311475,2.93489,3407.3,3406.6,2.93539]
[1721330311787,2.93489,3407.3,3406.8,2.93529]
[1721330312202,2.93489,3407.3,3406.6,2.93541]
[1721330312412,2.93506,3407.1,3406.6,2.93541]
[1721330312580,5.86985,3407.3,3406.6,3.813129]
[1721330312923,2.93497,3407.2,3406.6,3.813129]
[1721330313899,5.93487,3407.4,3406.7,2.93538]
[1721330314124,2.93488,3407.3,3406.7,2.93538]
[1721330315014,2.93499,3407.2,3406.6,3.813129]
[1721330315811,2.9351,3407.1,3406.6,0.877739]
[1721330316032,2.9351,3407.1,3406.4,5.25478]
[1721330316336,2.93514,3407.0,3406.4,2.93557]
[1721330316922,2.93546,3406.7,3406.0,5.22933]
[1721330317551,2.93548,3406.6,3406.0,5.22933]
[1721330317771,2.93548,3406.6,3406.1,2.93589]
[1721330317906,2.93514,3407.0,3406.4,2.93559]
[1721330318106,2.93522,3406.9,3406.4,2.93559]
[1721330318507,2.93511,3407.1,3406.5,2.93553]
[1721330318714,2.93513,3407.0,3406.5,2.93553]
[1721330319064,2.93513,3407.0,3406.3,2.93568]
[1721330319065,2.93535,3406.8,3406.3,2.93568]
[1721330319224,2.93535,3406.8,3406.1,2.93584]
[1721330319414,2.93535,3406.8,3406.2,2.93577]
[1721330319609,2.93535,3406.8,3406.3,2.93572]
[1721330320150,2.93522,3406.9,3406.3,2.93572]
[1721330320351,2.9351,3407.1,3406.5,2.93551]
[1721330320654,2.9351,3407.1,3406.3,2.93569]
[1721330320822,2.9351,3407.1,3406.5,2.93552]
[1721330321211,4.33426755,3407.7,3406.6,0.05870304]
[1721330321437,2.93494,3407.3,3406.7,2.93538]
[1721330321750,2.93494,3407.3,3406.5,2.93552]
[1721330321751,2.93497,3407.2,3406.5,2.93552]
[1721330322056,2.93505,3407.1,3406.5,2.93552]
[1721330322340,2.93505,3407.1,3406.5,2.9355]
[1721330322651,2.93491,3407.3,3406.7,2.93538]
[1721330323555,2.93496,3407.2,3406.7,2.93538]
[1721330323723,2.93496,3407.2,3406.5,3.56066302]
[1721330323724,2.93496,3407.2,3406.5,3.56064302]
[1721330324552,2.93505,3407.1,3406.6,2.93545]
[1721330324848,3.0,3407.6,3406.1,2.93587]
[1721330325056,2.93541,3406.7,3406.1,2.93587]
[1721330325260,2.93541,3406.7,3406.1,5.87171]
[1721330325479,2.93523,3406.9,3405.7,2.93621]
[1721330325629,2.93531,3406.8,3406.3,2.93567]
[1721330326059,5.87069,3406.8,3406.1,5.8717]
[1721330326268,2.93531,3406.8,3406.2,0.81651]
[1721330326470,2.93531,3406.8,3406.2,3.7523]
[1721330326626,2.93531,3406.8,3406.3,2.93571]
[1721330327571,2.93531,3406.8,3406.2,0.81651]
[1721330327572,2.93539,3406.7,3406.2,0.81651]
[1721330327790,2.93539,3406.7,3406.1,2.93582]
[1721330328073,2.3709,3406.9,3405.6,2.4269]
[1721330328074,2.93572,3406.4,3405.6,2.4269]
[1721330328231,2.93572,3406.4,3405.8,2.93615]
[1721330328438,2.93572,3406.4,3405.8,5.87225]
[1721330328636,2.93572,3406.4,3405.9,0.829915]
[1721330328935,2.9357,3406.4,3405.9,0.829915]
[1721330329872,2.93579,3406.3,3405.9,0.829915]
[1721330330071,2.93587,3406.2,3405.5,2.93635]
[1721330330670,2.93596,3406.1,3405.5,2.93635]
[1721330331039,2.93596,3406.1,3405.6,2.93633]
[1721330331253,2.9358,3406.3,3405.6,2.93626]
[1721330331454,2.9358,3406.3,3405.7,3.229806]
[1721330331670,2.93545,3406.7,3405.9,2.93604]
[1721330331968,2.93565,3406.4,3405.9,2.93604]
[1721330332178,2.93563,3406.5,3405.7,5.524536]
[1721330332382,2.93582,3406.3,3405.7,5.524506]
[1721330332569,2.93582,3406.3,3405.8,3.4885906]
[1721330333086,2.93563,3406.5,3405.8,6.4246906]
[1721330333385,2.93563,3406.5,3405.9,2.93606]
[1721330333561,2.93566,3406.4,3405.8,0.5524506]
[1721330333760,2.93566,3406.4,3405.8,3.4886106]
[1721330335481,2.93575,3406.3,3405.8,3.4886106]
[1721330335687,5.87156,3406.3,3405.8,0.5524506]
[1721330335864,2.93575,3406.3,3405.8,0.5524506]
[1721330336062,2.93575,3406.3,3405.8,3.4886106]
[1721330336258,5.87124,3406.5,3405.9,0.90132366]
[1721330336486,2.9356,3406.5,3405.9,0.90132366]
[1721330336854,2.93569,3406.4,3405.9,0.90132366]
[1721330337056,2.93579,3406.3,3405.8,3.4886106]
[1721330337279,2.9359,3406.2,3405.8,0.5524506]
[1721330337465,2.93579,3406.3,3405.6,2.93626]
[1721330338469,2.93594,3406.1,3405.6,2.93626]
[1721330340493,2.93579,3406.3,3405.6,2.93626]
[1721330340694,2.93586,3406.2,3405.7,2.93623]
[1721330341060,2.93586,3406.2,3405.6,2.93626]
[1721330341285,2.93574,3406.3,3405.7,3.773193]
[1721330341995,2.93583,3406.2,3405.7,3.773193]
[1721330342899,1.84633155,3406.7,3405.8,0.05871813]
[1721330343061,7.5,3407.0,3406.7,2.93538]
[1721330343259,7.5,3407.0,3406.8,3.228818]
[1721330343485,4.78101155,3407.6,3406.9,2.9352]
[1721330343665,2.93472,3407.5,3406.9,2.9352]
[1721330343867,2.93472,3407.5,3406.9,5.87034]
[1721330344103,2.93472,3407.5,3406.9,2.93514]
[1721330344258,2.93472,3407.5,3407.0,0.587052]
[1721330344460,2.93453,3407.7,3407.0,0.587052]
[1721330344662,2.93433,3408.0,3407.2,2.93495]
[1721330344663,2.93442,3407.9,3407.2,2.93495]
[1721330344885,2.93447,3407.8,3407.2,2.93495]
[1721330345284,2.93447,3407.8,3407.0,2.93506]
[1721330345285,2.93454,3407.7,3407.0,2.93506]
[1721330345600,2.93462,3407.6,3407.0,5.87011]
[1721330345804,2.93447,3407.8,3407.0,2.93505]
[1721330346104,2.93442,3407.9,3407.2,2.93494]
[1721330346262,2.93453,3407.7,3407.2,2.93494]
[1721330346915,2.93443,3407.9,3407.2,2.93494]
[1721330347265,2.93445,3407.8,3407.2,2.93494]
[1721330351409,2.93488,3407.3,3406.6,2.93542]
[1721330351721,2.93488,3407.3,3406.6,2.9354]
[1721330352120,2.93488,3407.3,3406.4,2.93557]
[1721330352121,2.93508,3407.1,3406.4,2.93557]
[1721330352419,2.93508,3407.1,3406.5,3.229107]
[1721330352793,2.93508,3407.1,3406.5,3.229057]
[1721330353003,2.93472,3407.5,3406.9,2.93517]
[1721330353205,2.93472,3407.5,3406.8,2.3138]
[1721330353410,2.93488,3407.3,3406.8,2.3138]
[1721330354221,2.93488,3407.3,3406.5,3.229067]
[1721330354222,2.93511,3407.1,3406.5,3.229067]
[1721330354525,2.93488,3407.3,3406.7,2.93538]
[1721330354686,2.93497,3407.2,3406.7,2.93538]
[1721330354886,2.93497,3407.2,3406.6,0.8592387]
[1721330355802,2.93497,3407.2,3406.6,3.7946987]
[1721330356016,2.93531,3406.8,3406.3,2.9357]
[1721330356214,2.93543,3406.7,3406.1,2.93589]
[1721330356421,5.87069,3406.8,3406.1,2.93589]
[1721330356646,5.87035,3407.0,3406.3,2.93573]
[1721330356937,2.93531,3406.8,3406.3,2.93573]
[1721330357231,2.93531,3406.8,3406.2,1.126926]
[1721330358035,2.93539,3406.7,3406.2,1.126926]
[1721330358846,2.935,3407.2,3405.6,2.3894]
[1721330358997,2.3203,3406.6,3405.2,2.3894]
[1721330359201,2.93586,3406.2,3405.6,2.93626]
[1721330359600,2.93595,3406.1,3405.6,2.93626]
[1721330359812,2.93595,3406.1,3405.5,2.93639]
[1721330360213,2.93595,3406.1,3405.5,6.76051818]
[1721330360410,2.93595,3406.1,3405.5,3.82412818]
[1721330361448,2.93618,3405.8,3405.3,0.61534177]
[1721330361847,2.93618,3405.8,3405.2,2.3894]
[1721330362342,2.93608,3405.9,3405.2,2.3894]
[1721330362343,2.93608,3405.9,3405.3,2.93654]
[1721330362511,2.3203,3406.6,3405.2,2.3894]
[1721330362852,2.93566,3406.4,3405.5,2.93634]
[1721330363058,2.93566,3406.4,3405.8,2.93611]
[1721330363266,2.93574,3406.3,3405.8,2.93611]
[1721330363616,2.93582,3406.2,3405.6,3.229894]
[1721330363828,2.93592,3406.1,3405.6,3.229894]
[1721330364081,1.84352494,3406.9,3405.2,5.32606]
[1721330364082,2.4764,3406.4,3405.2,5.32606]
[1721330364223,2.4764,3406.4,3405.2,2.3894]
[1721330364224,2.93577,3406.3,3405.2,2.3894]
[1721330364421,2.9363,3405.7,3405.1,3.0]
[1721330364623,2.9361,3405.9,3405.1,3.0]